fUST/lending_fUST_20240325
["ID","MTS","AMOUNT","RATE_DAILY","PERIOD"]
[320384051,1711338444534,-500.0,0.00054691,120]
[320384052,1711338444555,-527.12761673,0.00054691,120]
[320384053,1711338444578,-6552.71,0.00054692,120]
[320384054,1711338444600,-6552.71,0.00054692,120]
[320384055,1711338444620,-156.49513255,0.00054792,4]
[320384056,1711338444645,-192.87914367,0.00054792,4]
[320384057,1711338444667,-155.85623161,0.00054792,4]
[320384058,1711338444689,-321.48338375,0.00054792,4]
[320384059,1711338444711,-930.95477622,0.00054792,30]
[320384060,1711338444731,-182.87184496,0.00054792,4]
[320384061,1711338444752,-594.08494892,0.00054792,2]
[320384062,1711338444774,-6783.4193374,0.00054792,4]
[320384063,1711338444793,-205.27707627,0.00054792,4]
[320384064,1711338444814,-6552.71,0.00054792,120]
[320384065,1711338444835,-6552.71,0.00054792,120]
[320384066,1711338444857,-903.26022556,0.00054793,4]
[320384067,1711338444878,-6552.71,0.00054793,120]
[320384068,1711338444902,-6552.71,0.00054793,120]
[320384069,1711338444924,-6552.71,0.00054793,120]
[320384070,1711338444943,-6552.71,0.00054793,120]
[320384071,1711338444963,-6552.71,0.00054793,120]
[320384072,1711338444987,-4938.66,0.00054793,120]
[320384073,1711338445010,-500.0,0.00054793,120]
[320384074,1711338445031,-500.0,0.00054793,120]
[320384075,1711338445055,-270.90768587,0.00054793,120]
[320384076,1711338445076,-500.0,0.00054794,120]
[320384077,1711338445097,-288.41328501,0.00054794,120]
[320384078,1711338445120,-500.0,0.00054794,120]
[320384079,1711338445141,-503.40275717,0.00054794,120]
[320384080,1711338445162,-500.0,0.00054794,120]
[320384081,1711338445183,-504.43919802,0.00054794,120]
[320384082,1711338445204,-500.0,0.00054794,120]
[320384083,1711338445225,-502.33862055,0.00054794,120]
[320384084,1711338445244,-500.0,0.00054794,120]
[320384085,1711338445265,-263.01296577,0.00054794,120]
[320384086,1711338445285,-500.0,0.00054794,120]
[320384087,1711338445305,-500.0,0.00054794,120]
[320384088,1711338445326,-505.74445312,0.00054794,120]
[320384089,1711338445347,-500.0,0.00054794,120]
[320384090,1711338445369,-500.0,0.00054794,120]
[320384091,1711338445391,-500.0,0.00054794,120]
[320384092,1711338445412,-500.0,0.00054794,120]
[320384093,1711338445435,-500.0,0.00054794,120]
[320384094,1711338445456,-500.0,0.00054794,120]
[320384095,1711338445479,-500.0,0.00054794,120]
[320384096,1711338445501,-500.0,0.00054794,120]
[320384097,1711338445523,-500.0,0.00054794,120]
[320384098,1711338445543,-500.0,0.00054794,120]
[320384099,1711338445563,-500.0,0.00054794,120]
[320384100,1711338445585,-500.0,0.00054794,120]
[320384101,1711338445605,-500.0,0.00054794,120]
[320384102,1711338445625,-506.66388332,0.00054794,120]
[320384103,1711338445645,-1138.98,0.00054794,120]
[320384104,1711338445666,-1100.05,0.00054794,120]
[320384105,1711338445686,-758.09,0.00054794,120]
[320384106,1711338445709,-1014.39,0.00054794,120]
[320384107,1711338445731,-500.0,0.00054794,120]
[320384108,1711338445751,-507.35109537,0.00054794,120]
[320384109,1711338445772,-500.0,0.00054794,120]
[320384110,1711338445794,-504.4538203,0.00054794,120]
[320384111,1711338445817,-500.0,0.00054794,120]
[320384112,1711338445837,-500.0,0.00054794,120]
[320384113,1711338445859,-500.0,0.00054794,120]
[320384114,1711338445879,-500.0,0.00054794,120]
[320384115,1711338446015,-500.0,0.00054794,120]
[320384116,1711338446036,-500.0,0.00054794,120]
[320384117,1711338446056,-931.75,0.00054794,120]
[320384118,1711338446077,-500.0,0.00054794,120]
[320384119,1711338446098,-500.0,0.00054794,120]
[320384120,1711338446119,-500.0,0.00054794,120]
[320384121,1711338446140,-500.0,0.00054794,120]
[320384122,1711338446160,-522.71,0.00054794,120]
[320384123,1711338446181,-500.0,0.00054794,120]
[320384124,1711338446203,-500.0,0.00054794,120]
[320384125,1711338446225,-593.73,0.00054794,120]
[320384126,1711338446247,-500.0,0.00054794,120]
[320384127,1711338446270,-588.64502925,0.00054794,120]
[320384128,1711338446291,-500.0,0.00054794,120]
[320384129,1711338446311,-500.0,0.00054794,120]
[320384130,1711338446332,-1406.29,0.00054794,120]
[320384131,1711338446352,-649.33,0.00054794,120]
[320384132,1711338446372,-500.0,0.00054794,120]
[320384133,1711338446392,-1384.05,0.00054794,120]
[320384134,1711338446412,-500.0,0.00054794,120]
[320384135,1711338446432,-976.63,0.00054794,120]
[320384136,1711338446453,-1747.57,0.00054794,120]
[320384137,1711338446473,-1116.02,0.00054794,120]
[320384138,1711338446494,-500.0,0.00054794,120]
[320384139,1711338446516,-500.0,0.00054794,120]
[320384140,1711338446537,-1162.24,0.00054794,120]
[320384141,1711338446558,-12388.07,0.00054794,120]
[320384142,1711338446579,-1495.75,0.00054794,120]
[320384143,1711338446600,-1495.75,0.00054794,120]
[320384144,1711338446619,-1495.75,0.00054794,120]
[320384145,1711338446638,-1495.75,0.00054794,120]
[320384146,1711338446657,-1495.75,0.00054794,120]
[320384147,1711338446678,-1495.75,0.00054794,120]
[320384148,1711338446698,-1495.75,0.00054794,120]
[320384149,1711338446718,-2409.08,0.00054794,120]
[320384150,1711338446738,-1495.75,0.00054794,120]
[320384151,1711338446759,-1495.75,0.00054794,120]
[320384152,1711338446780,-1495.75,0.00054794,120]
[320384153,1711338446803,-1495.75,0.00054794,120]
[320384154,1711338446824,-1495.75,0.00054794,120]
[320384155,1711338446844,-1495.75,0.00054794,120]
[320384156,1711338446869,-1495.75,0.00054794,120]
[320384157,1711338446889,-500.0,0.00054794,120]
[320384158,1711338446909,-500.0,0.00054794,120]
[320384159,1711338446931,-1495.75,0.00054794,120]
[320384160,1711338446951,-1495.75,0.00054794,120]
[320384161,1711338446971,-1495.75,0.00054794,120]
[320384162,1711338446993,-1495.75,0.00054794,120]
[320384163,1711338447016,-1495.75,0.00054794,120]
[320384164,1711338447038,-1495.75,0.00054794,120]
[320384165,1711338447061,-1495.75,0.00054794,120]
[320384166,1711338447084,-1495.75,0.00054794,120]
[320384167,1711338447106,-1495.75,0.00054794,120]
[320384168,1711338447128,-1495.76991359,0.00054794,120]
[320384169,1711338447149,-505.4,0.00054794,120]
[320384170,1711338447173,-500.0,0.00054794,120]
[320384171,1711338447197,-500.0,0.00054794,120]
[320384172,1711338447217,-1040.07,0.00054794,120]
[320384173,1711338447238,-500.0,0.00054794,120]
[320384174,1711338447260,-500.0,0.00054794,120]
[320384175,1711338447281,-500.0,0.00054794,120]
[320384176,1711338447304,-12862.64,0.00054794,90]
[320384177,1711338447326,-222.5121703,0.00054794,120]
[320384178,1711338447455,-173.58310674,0.00046891,30]
[320384179,1711338447475,-277.4878297,0.00054794,120]
[320384180,1711338447496,-978.62,0.00054794,120]
[320384181,1711338447517,-1850.96,0.00054794,120]
[320384182,1711338447537,-2594.3,0.00054794,21]
[320384183,1711338447557,-500.0,0.00054794,120]
[320384184,1711338447576,-500.0,0.00054794,120]
[320384185,1711338447596,-500.0,0.00054794,120]
[320384186,1711338447615,-500.0,0.00054794,120]
[320384187,1711338447635,-500.0,0.00054794,120]
[320384188,1711338447655,-1381.13,0.00054794,120]
[320384189,1711338447674,-500.0,0.00054794,120]
[320384190,1711338447694,-545.7747223,0.00054794,120]
[320384191,1711338447713,-976.42,0.00054794,120]
[320384192,1711338447733,-2192.37,0.00054794,120]
[320384193,1711338447753,-500.0,0.00054794,60]
[320384194,1711338447772,-2256.98,0.00054794,120]
[320384195,1711338447795,-500.0,0.00054794,120]
[320384196,1711338447815,-1142.75,0.00054794,120]
[320384197,1711338447837,-1939.30072126,0.00054794,120]
[320384198,1711338449104,-269.25927874,0.00054794,120]
[320384199,1711338449129,-500.0,0.00054794,120]
[320384200,1711338449152,-500.0,0.00054794,120]
[320384201,1711338449174,-554.3,0.00054794,120]
[320384202,1711338449196,-1189.95,0.00054794,120]
[320384203,1711338449218,-374.78215848,0.00054794,120]
[320384204,1711338449239,-748.15,0.00054794,120]
[320384205,1711338449262,-3730.64,0.00054794,120]
[320384206,1711338449284,-1208.56,0.00054794,120]
[320384207,1711338449304,-500.0,0.00054794,120]
[320384208,1711338449324,-1833.76,0.00054794,120]
[320384209,1711338449344,-1517.39,0.00054794,2]
[320384210,1711338449366,-500.0,0.00054794,120]
[320384211,1711338449386,-500.0,0.00054794,120]
[320384212,1711338449406,-898.08,0.00054794,120]
[320384213,1711338449427,-728.02,0.00054794,120]
[320384214,1711338449447,-500.0,0.00054794,120]
[320384215,1711338449468,-500.0,0.00054794,120]
[320384216,1711338449488,-500.0,0.00054794,120]
[320384217,1711338449508,-500.0,0.00054794,120]
[320384218,1711338449529,-1129.0,0.00054794,120]
[320384219,1711338449549,-500.0,0.00054794,120]
[320384220,1711338449569,-500.0,0.00054794,120]
[320384221,1711338449587,-500.0,0.00054794,120]
[320384222,1711338449607,-500.0,0.00054794,120]
[320384223,1711338449626,-500.0,0.00054794,120]
[320384224,1711338449646,-1036.41,0.00054794,120]
[320384225,1711338449667,-1775.66,0.00054794,120]
[320384226,1711338449686,-500.0,0.00054794,120]
[320384227,1711338449707,-1345.05,0.00054794,120]
[320384228,1711338449727,-500.0,0.00054794,120]
[320384229,1711338449747,-1350.83,0.00054794,120]
[320384230,1711338449767,-4954.38,0.00054794,120]
[320384231,1711338449787,-935.42,0.00054794,120]
[320384232,1711338449807,-1500.0,0.00054794,120]
[320384233,1711338449826,-500.0,0.00054794,120]
[320384234,1711338449845,-2212.95,0.00054794,120]
[320384235,1711338449865,-500.0,0.00054794,120]
[320384236,1711338449885,-500.0,0.00054794,120]
[320384237,1711338449905,-1629.24,0.00054794,120]
[320384238,1711338449930,-10759.55,0.00054794,120]
[320384239,1711338449949,-5070.02,0.00054794,120]
[320384240,1711338449970,-500.0,0.00054794,120]
[320384241,1711338449994,-500.0,0.00054794,120]
[320384242,1711338450016,-500.0,0.00054794,120]
[320384243,1711338450036,-913.34,0.00054794,120]
[320384244,1711338450057,-252.3081089,0.00054794,120]
[320384245,1711338450078,-500.0,0.00054794,120]
[320384246,1711338450208,-500.0,0.00054794,120]
[320384247,1711338450230,-500.0,0.00054794,120]
[320384248,1711338450249,-2505.84,0.00054794,120]
[320384249,1711338450270,-1000.0,0.00057,120]
[320384250,1711338450290,-194.46317703,0.00057434,120]
[320384251,1711338450310,-194.46317703,0.00057434,120]
[320384252,1711338450329,-194.46317703,0.00057434,120]
[320384253,1711338450349,-194.46317703,0.00057434,120]
[320384254,1711338450368,-194.46317703,0.00057434,120]
[320384255,1711338450387,-194.46317703,0.00057434,120]
[320384256,1711338450407,-194.46317703,0.00057434,120]
[320384257,1711338450427,-194.96,0.00057434,120]
[320384258,1711338450447,-163.25833088,0.00057434,120]
[320384259,1711338450467,-163.25833088,0.00057434,120]
[320384260,1711338450487,-163.25833088,0.00057434,120]
[320384261,1711338450507,-163.25833088,0.00057434,120]
[320384262,1711338450527,-163.25833088,0.00057434,120]
[320384263,1711338450547,-163.25833088,0.00057434,120]
[320384264,1711338450566,-163.25833088,0.00057434,120]
[320384265,1711338450592,-163.25833088,0.00057434,120]
[320384266,1711338450612,-163.25833088,0.00057434,120]
[320384267,1711338450631,-163.75,0.00057434,120]
[320384268,1711338450651,-150.0,0.000575,108]
[320384269,1711338450673,-6552.71,0.00057533,120]
[320384270,1711338450697,-6552.71,0.00057533,120]
[320384271,1711338450719,-6552.71,0.00057533,120]
[320384272,1711338450740,-4938.66,0.00057533,120]
[320384273,1711338450764,-500.0,0.00057534,120]
[320384274,1711338450783,-500.0,0.00057534,120]
[320384275,1711338450805,-500.0,0.00057534,120]
[320384276,1711338450825,-500.0,0.00057534,120]
[320384277,1711338450844,-227.55004826,0.00057534,120]
[320384278,1711338450864,-500.0,0.00057534,120]
[320384279,1711338450884,-500.0,0.00057534,120]
[320384280,1711338450905,-500.0,0.00057534,120]
[320384281,1711338450926,-500.0,0.00057534,120]
[320384282,1711338450947,-432.64562849,0.00057534,120]
[320384310,1711338633264,-2082.77466787,0.00053895,15]
[320384311,1711338633274,-3199.952,0.00053896,4]
[320384312,1711338633284,-1000.0,0.00053898,5]
[320384313,1711338633294,-1000.0,0.00054573,10]
[320384314,1711338633303,-3276.36,0.00054692,120]
[320384315,1711338633313,-318.28246246,0.00054692,120]
[320384316,1711338633330,-2958.07753754,0.00054692,120]
[320384317,1711338633340,-219.94060134,0.00054694,2]
[320384318,1711338633350,-3276.36,0.00054792,120]
[320384319,1711338633361,-3276.36,0.00054792,120]
[320384320,1711338633371,-3276.36,0.00054792,120]
[320384321,1711338633381,-903.26022556,0.00054792,4]
[320384322,1711338633391,-3153.56269099,0.00054792,120]
[320384343,1711338638462,-1373.53730901,0.00054792,120]
[320384344,1711338638472,-3276.36,0.00054793,120]
[320384345,1711338638482,-3276.36,0.00054793,120]
[320384346,1711338638491,-3276.36,0.00054793,120]
[320384347,1711338638500,-169.6808463,0.00054793,120]
[320384348,1711338638509,-500.0,0.00054794,120]
[320384349,1711338638518,-1113.81,0.00054794,120]
[320384350,1711338638527,-12326.7,0.00054794,90]
[320384351,1711338638536,-500.0,0.00054794,120]
[320384352,1711338638545,-500.0,0.00054794,120]
[320384353,1711338638554,-500.0,0.00054794,120]
[320384354,1711338638563,-2486.2,0.00054794,21]
[320384355,1711338638572,-500.0,0.00054794,120]
[320384356,1711338638581,-500.0,0.00054794,120]
[320384357,1711338638591,-500.0,0.00054794,120]
[320384358,1711338638600,-937.84,0.00054794,120]
[320384359,1711338638609,-1773.84,0.00054794,120]
[320384360,1711338638619,-504.46212136,0.00054794,120]
[320384362,1711338638628,-500.0,0.00054794,120]
[320384364,1711338638638,-489.34828521,0.00054794,120]
[320384366,1711338638647,-500.0,0.00054794,60]
[320384368,1711338638656,-500.0,0.00054794,120]
[320384370,1711338638666,-2101.02,0.00054794,120]
[320384372,1711338638675,-500.0,0.00054794,120]
[320384374,1711338638684,-531.2,0.00054794,120]
[320384376,1711338638693,-935.73,0.00054794,120]
[320384378,1711338638703,-1254.24,0.00054794,120]
[320384379,1711338638711,-2162.94,0.00054794,120]
[320384382,1711338638721,-1054.21,0.00054794,120]
[320384383,1711338638730,-500.0,0.00054794,120]
[320384385,1711338638740,-1326.38,0.00054794,120]
[320384388,1711338638750,-500.0,0.00054794,120]
[320384389,1711338638759,-1158.21,0.00054794,120]
[320384391,1711338638768,-3575.19,0.00054794,120]
[320384393,1711338638777,-972.13,0.00054794,120]
[320384395,1711338638786,-500.0,0.00054794,120]
[320384397,1711338638795,-500.0,0.00054794,120]
[320384399,1711338638805,-500.0,0.00054794,120]
[320384401,1711338638814,-1454.16,0.00054794,2]
[320384403,1711338638823,-500.0,0.00054794,120]
[320384405,1711338638833,-1081.96,0.00054794,120]
[320384407,1711338638842,-11871.9,0.00054794,120]
[320384409,1711338638851,-1701.68,0.00054794,120]
[320384411,1711338638860,-500.0,0.00054794,120]
[320384413,1711338638869,-1500.0,0.00054794,120]
[320384415,1711338638878,-589.76423813,0.00054794,120]
[320384417,1711338638887,-3577.47738775,0.00054794,120]
[320384420,1711338638904,-1170.47261225,0.00054794,120]
[320384422,1711338638914,-2120.74,0.00054794,120]
[320384424,1711338638923,-219.94060132,0.00056064,2]
[320384426,1711338638932,-155.53665283,0.00056958,120]
[320384428,1711338638941,-1000.0,0.00057302,15]
[320384430,1711338638950,-219.94060132,0.00057434,2]
[320384432,1711338638960,-4527.1,0.00057532,120]
[320384434,1711338638970,-381.27230576,0.00057533,120]
[320384436,1711338638979,-3276.36,0.00057533,120]
[320384438,1711338638988,-3276.36,0.00057533,120]
[320384440,1711338638997,-3276.36,0.00057533,120]
[320384442,1711338639006,-3276.36,0.00057533,120]
[320384444,1711338639015,-500.0,0.00057534,120]
[320384446,1711338639024,-507.96141235,0.00057534,120]
[320384448,1711338639033,-500.0,0.00057534,120]
[320384450,1711338639042,-500.0,0.00057534,120]
[320384452,1711338639051,-500.0,0.00057534,120]
[320384454,1711338639060,-500.0,0.00057534,120]
[320384456,1711338639074,-758.09,0.00057534,120]
[320384458,1711338639083,-500.0,0.00057534,120]
[320384460,1711338639092,-500.0,0.00057534,120]
[320384462,1711338639101,-500.0,0.00057534,120]
[320384464,1711338639111,-500.0,0.00057534,120]
[320384466,1711338639121,-500.0,0.00057534,120]
[320384468,1711338639130,-931.75,0.00057534,120]
[320384470,1711338639140,-500.0,0.00057534,120]
[320384472,1711338639149,-185.12713037,0.00057534,120]
[320384474,1711338639158,-500.0,0.00057534,120]
[320384476,1711338639168,-500.0,0.00057534,120]
[320384478,1711338639177,-522.71,0.00057534,120]
[320384479,1711338639187,-500.0,0.00057534,120]
[320384482,1711338639196,-269.72194117,0.00057534,120]
[320384483,1711338639206,-593.73,0.00057534,120]
[320384485,1711338639216,-500.0,0.00057534,120]
[320384487,1711338639225,-500.0,0.00057534,120]
[320384489,1711338639235,-500.0,0.00057534,120]
[320384491,1711338639244,-1406.29,0.00057534,120]
[320384493,1711338639253,-649.33,0.00057534,120]
[320384495,1711338639262,-500.0,0.00057534,120]
[320384497,1711338639271,-500.0,0.00057534,120]
[320384499,1711338639281,-976.63,0.00057534,120]
[320384501,1711338639290,-1747.57,0.00057534,120]
[320384503,1711338639299,-1116.02,0.00057534,120]
[320384505,1711338639310,-329.01831061,0.00057534,120]
[320384507,1711338639319,-500.0,0.00057534,120]
[320384509,1711338639328,-2409.08,0.00057534,120]
[320384511,1711338639337,-500.0,0.00057534,120]
[320384513,1711338639345,-500.0,0.00057534,120]
[320384515,1711338639355,-500.0,0.00057534,120]
[320384517,1711338639364,-500.0,0.00057534,120]
[320384519,1711338639373,-1040.07,0.00057534,120]
[320384521,1711338639383,-500.0,0.00057534,120]
[320384523,1711338639392,-500.0,0.00057534,120]
[320384524,1711338639401,-500.0,0.00057534,120]
[320384525,1711338639410,-500.0,0.00057534,120]
[320384526,1711338639420,-500.0,0.00057534,120]
[320384527,1711338639428,-500.0,0.00057534,120]
[320384528,1711338639437,-1381.13,0.00057534,120]
[320384529,1711338639447,-500.0,0.00057534,120]
[320384530,1711338639456,-500.0,0.00057534,120]
[320384531,1711338639465,-1142.75,0.00057534,120]
[320384532,1711338639475,-2208.56,0.00057534,120]
[320384533,1711338639484,-500.0,0.00057534,120]
[320384534,1711338639494,-500.0,0.00057534,120]
[320384535,1711338639503,-1189.95,0.00057534,120]
[320384536,1711338639513,-748.15,0.00057534,120]
[320384537,1711338639523,-500.0,0.00057534,120]
[320384538,1711338639532,-1833.76,0.00057534,120]
[320384539,1711338639542,-638.26620588,0.00057534,120]
[320384540,1711338639551,-898.08,0.00057534,120]
[320384541,1711338639570,-728.02,0.00057534,120]
[320384542,1711338639581,-500.0,0.00057534,120]
[320384543,1711338639590,-500.0,0.00057534,120]
[320384544,1711338639600,-500.0,0.00057534,120]
[320384545,1711338639610,-500.0,0.00057534,120]
[320384546,1711338639619,-500.0,0.00057534,120]
[320384547,1711338639629,-500.0,0.00057534,120]
[320384548,1711338639639,-1036.41,0.00057534,120]
[320384549,1711338639648,-500.0,0.00057534,120]
[320384550,1711338639658,-1345.05,0.00057534,120]
[320384551,1711338639668,-500.0,0.00057534,120]
[320384552,1711338639680,-1350.83,0.00057534,120]
[320384553,1711338639690,-935.42,0.00057534,120]
[320384554,1711338639700,-500.0,0.00057534,120]
[320384555,1711338639710,-500.0,0.00057534,120]
[320384556,1711338639719,-507.77460309,0.00057534,120]
[320384557,1711338639728,-1629.24,0.00057534,120]
[320384558,1711338639739,-10759.55,0.00057534,120]
[320384559,1711338639748,-5070.02,0.00057534,120]
[320384560,1711338639758,-500.0,0.00057534,120]
[320384561,1711338639769,-500.0,0.00057534,120]
[320384562,1711338639779,-500.0,0.00057534,120]
[320384563,1711338639788,-913.34,0.00057534,120]
[320384564,1711338639799,-500.0,0.00057534,120]
[320384565,1711338639809,-500.0,0.00057534,120]
[320384566,1711338639818,-500.0,0.00057534,120]
[320384567,1711338639829,-2505.84,0.00057534,120]
[320384568,1711338639840,-519.72478314,0.00057534,120]
[320384569,1711338639850,-1113.81,0.00057534,120]
[320384570,1711338639860,-12326.7,0.00057534,90]
[320384571,1711338639870,-500.0,0.00057534,120]
[320384572,1711338639880,-500.0,0.00057534,120]
[320384573,1711338639890,-500.0,0.00057534,120]
[320384574,1711338639900,-2486.2,0.00057534,21]
[320384575,1711338639910,-500.0,0.00057534,120]
[320384576,1711338639921,-500.0,0.00057534,120]
[320384577,1711338639930,-322.85082165,0.00057534,120]
[320384578,1711338639940,-937.84,0.00057534,120]
[320384579,1711338639949,-1773.84,0.00057534,120]
[320384580,1711338639959,-500.0,0.00057534,120]
[320384581,1711338639968,-500.0,0.00057534,60]
[320384582,1711338639978,-500.0,0.00057534,120]
[320384583,1711338639989,-2101.02,0.00057534,120]
[320384584,1711338639999,-500.0,0.00057534,120]
[320384585,1711338640007,-531.2,0.00057534,120]
[320384586,1711338640016,-935.73,0.00057534,120]
[320384587,1711338640026,-1254.24,0.00057534,120]
[320384588,1711338640036,-2162.94,0.00057534,120]
[320384589,1711338640045,-1054.21,0.00057534,120]
[320384590,1711338640055,-500.0,0.00057534,120]
[320384592,1711338640065,-1326.38,0.00057534,120]
[320384594,1711338640077,-500.0,0.00057534,120]
[320384595,1711338640087,-1158.21,0.00057534,120]
[320384596,1711338640097,-3575.19,0.00057534,120]
[320384597,1711338640107,-972.13,0.00057534,120]
[320384598,1711338640118,-500.0,0.00057534,120]
[320384599,1711338640129,-500.0,0.00057534,120]
[320384600,1711338640138,-500.0,0.00057534,120]
[320384601,1711338640148,-1454.16,0.00057534,2]
[320384602,1711338640159,-500.0,0.00057534,120]
[320384603,1711338640170,-1081.96,0.00057534,120]
[320384604,1711338640179,-11871.9,0.00057534,120]
[320384605,1711338640188,-1701.68,0.00057534,120]
[320384606,1711338640197,-500.0,0.00057534,120]
[320384607,1711338640207,-1500.0,0.00057534,120]
[320384608,1711338640218,-4747.95,0.00057534,120]
[320384609,1711338640228,-2120.74,0.00057534,120]
[320384610,1711338640240,-5009.144733,0.00059,10]
[320384611,1711338640252,-1000.0,0.00059322,20]
[320384612,1711338640262,-1000.0,0.00059882,25]
[320384613,1711338640271,-2000.0,0.0006,120]
[320384614,1711338640281,-400.0,0.0006,40]
[320384615,1711338640290,-188.42540537,0.00060271,2]
[320384616,1711338640300,-1612.15138092,0.00060272,61]
[320384617,1711338640310,-320.58044476,0.00060272,7]
[320384618,1711338640319,-3276.36,0.00060272,120]
[320384619,1711338640329,-1587.59408421,0.00060272,120]
[320384620,1711338640346,-1688.76591579,0.00060272,120]
[320384621,1711338640356,-3276.36,0.00060272,120]
[320384623,1711338640366,-3276.36,0.00060272,120]
[320384625,1711338640375,-4527.1,0.00060272,120]
[320384626,1711338640385,-500.0,0.00060273,120]
[320384627,1711338640397,-500.0,0.00060273,120]
[320384628,1711338640407,-500.0,0.00060273,120]
[320384629,1711338640418,-500.0,0.00060273,120]
[320384631,1711338640427,-500.0,0.00060273,120]
[320384633,1711338640437,-500.0,0.00060273,120]
[320384635,1711338640447,-500.0,0.00060273,120]
[320384636,1711338640456,-500.0,0.00060273,120]
[320384637,1711338640465,-500.0,0.00060273,120]
[320384638,1711338640474,-758.09,0.00060273,120]
[320384640,1711338640484,-500.0,0.00060273,120]
[320384641,1711338640493,-500.0,0.00060273,120]
[320384643,1711338640502,-500.0,0.00060273,120]
[320384644,1711338640512,-495.8109964,0.00060273,120]
[320384645,1711338640521,-500.0,0.00060273,120]
[320384646,1711338640531,-931.75,0.00060273,120]
[320384647,1711338640540,-507.59565112,0.00060273,120]
[320384648,1711338640549,-500.0,0.00060273,120]
[320384649,1711338640559,-500.0,0.00060273,120]
[320384650,1711338640568,-522.71,0.00060273,120]
[320384651,1711338640577,-500.0,0.00060273,120]
[320384652,1711338640587,-593.73,0.00060273,120]
[320384653,1711338640596,-500.0,0.00060273,120]
[320384654,1711338640606,-506.53578238,0.00060273,120]
[320384655,1711338640615,-500.0,0.00060273,120]
[320384656,1711338640623,-1406.29,0.00060273,120]
[320384657,1711338640763,-649.33,0.00060273,120]
[320384658,1711338640773,-500.0,0.00060273,120]
[320384659,1711338640783,-500.0,0.00060273,120]
[320384660,1711338640792,-976.63,0.00060273,120]
[320384661,1711338640801,-1747.57,0.00060273,120]
[320384662,1711338640811,-1116.02,0.00060273,120]
[320384663,1711338640821,-500.0,0.00060273,120]
[320384664,1711338640830,-2409.08,0.00060273,120]
[320384665,1711338640839,-500.0,0.00060273,120]
[320384666,1711338640850,-505.22557311,0.00060273,120]
[320384667,1711338640860,-505.57131452,0.00060273,120]
[320384668,1711338640869,-500.0,0.00060273,120]
[320384669,1711338640879,-1040.07,0.00060273,120]
[320384670,1711338640888,-500.0,0.00060273,120]
[320384671,1711338640897,-500.0,0.00060273,120]
[320384672,1711338640905,-500.0,0.00060273,120]
[320384673,1711338640914,-500.0,0.00060273,120]
[320384674,1711338640923,-499.65470183,0.00060273,120]
[320384675,1711338640933,-500.0,0.00060273,120]
[320384676,1711338640942,-1381.13,0.00060273,120]
[320384677,1711338640952,-500.0,0.00060273,120]
[320384678,1711338640961,-500.0,0.00060273,120]
[320384679,1711338640971,-1142.75,0.00060273,120]
[320384680,1711338640980,-2208.56,0.00060273,120]
[320384681,1711338640990,-500.0,0.00060273,120]
[320384682,1711338641001,-500.0,0.00060273,120]
[320384683,1711338641011,-1189.95,0.00060273,120]
[320384684,1711338641020,-748.15,0.00060273,120]
[320384685,1711338641031,-500.0,0.00060273,120]
[320384686,1711338641041,-1833.76,0.00060273,120]
[320384687,1711338641051,-898.08,0.00060273,120]